fUST/lending_fUST_20260225
["ID","MTS","AMOUNT","RATE_DAILY","PERIOD"]
[406620223,1771978251503,-815.63,0.00040993,120]
[406620224,1771978251512,-917.68830291,0.00041,120]
[406620225,1771978251521,-201.21376001,0.00041,90]
[406620226,1771978251531,-500.0,0.00041,120]
[406620227,1771978251540,-150.0,0.00041051,120]
[406620228,1771978251550,-4788.28,0.00041095,120]
[406620229,1771978251560,-1000.0,0.00041096,120]
[406620230,1771978251569,-26159.66,0.00041096,120]
[406620231,1771978251579,-351.35,0.00041096,120]
[406620232,1771978251588,-516.17,0.000411,30]
[406620233,1771978251598,-168.96,0.000411,14]
[406620234,1771978251607,-274.2187229,0.00041138,120]
[406620235,1771978251617,-744.3517164,0.000412,3]
[406620236,1771978251626,-515.35360251,0.00041229,14]
[406620237,1771978251636,-429.0,0.00041408,2]
[406620238,1771978251645,-727.0,0.00041466,2]
[406620239,1771978251654,-815.63,0.00041591,120]
[406620240,1771978251664,-864.0,0.00041591,60]
[406620241,1771978251673,-485.93475929,0.00041824,14]
[406620242,1771978251682,-346.9476,0.00041895,30]
[406620243,1771978251691,-346.20376531,0.00041895,120]
[406620244,1771978251701,-500.0,0.0004192,30]
[406620245,1771978251711,-15433.26148328,0.00041944,2]
[406620246,1771978251721,-6101.44095133,0.00041944,2]
[406620247,1771978251735,-300.0,0.00041944,2]
[406620248,1771978251745,-516.03661491,0.00041944,2]
[406620250,1771978251754,-331.22280417,0.00041944,2]
[406620251,1771978251764,-295.60844263,0.00041944,2]
[406620252,1771978251774,-158.64104971,0.00041944,2]
[406620253,1771978251784,-159.61465781,0.00041944,2]
[406620254,1771978251794,-476.14206464,0.00041944,2]
[406620255,1771978251803,-514.26821964,0.00041944,2]
[406620256,1771978251813,-186.29771496,0.00041944,2]
[406620257,1771978251823,-474.01356946,0.00041944,2]
[406620258,1771978251833,-191.6261612,0.00041944,2]
[406620259,1771978251843,-200.73416874,0.00041944,2]
[406620260,1771978251853,-390.55515006,0.00041944,2]
[406620261,1771978251863,-203.96804675,0.00041944,2]
[406620262,1771978251873,-152.29492308,0.00041944,2]
[406620263,1771978251883,-261.97318983,0.00041944,2]
[406620264,1771978251892,-327.97000079,0.00041944,2]
[406620265,1771978251902,-153.74227746,0.00041944,2]
[406620266,1771978251912,-329.79890419,0.00041944,2]
[406620267,1771978251922,-259.40451078,0.00041944,2]
[406620268,1771978251932,-201.00357409,0.00041944,2]
[406620269,1771978251941,-200.0,0.00041945,56]
[406620270,1771978251951,-159.0,0.0004195,14]
[406620271,1771978251960,-188.28026825,0.0004195,14]
[406620272,1771978251970,-1037.399683,0.0004195,15]
[406620273,1771978251980,-511.5765,0.0004195,2]
[406620276,1771978251992,-511.5765,0.0004195,3]
[406620278,1771978252004,-511.5765,0.0004195,4]
[406620280,1771978252014,-511.5765,0.0004195,2]
[406620282,1771978252024,-511.5765,0.0004195,3]
[406620284,1771978252035,-511.5765,0.0004195,4]
[406620286,1771978252046,-200.0,0.0004195,2]
[406620288,1771978252056,-511.5765,0.0004195,2]
[406620290,1771978252071,-511.5765,0.0004195,3]
[406620291,1771978252080,-220.36,0.0004195,2]
[406620292,1771978252089,-159.0,0.0004195,14]
[406620293,1771978252099,-159.0,0.0004195,14]
[406620294,1771978252108,-282.97,0.0004195,14]
[406620295,1771978252118,-158.0,0.0004195,120]
[406620296,1771978252127,-324.0573826,0.0004195,30]
[406620297,1771978252136,-150.0,0.0004195,30]
[406620298,1771978252146,-179.7543851,0.0004195,30]
[406620299,1771978252156,-150.0,0.0004195,30]
[406620300,1771978252167,-3616.8782047,0.0004195,30]
[406620301,1771978252177,-187.71,0.0004195,2]
[406620302,1771978252187,-150.0,0.0004195,30]
[406620303,1771978252196,-41845.91523754,0.00041952,120]
[406620304,1771978252206,-1520.6,0.00042,30]
[406620305,1771978252216,-286.90656786,0.00042,120]
[406620306,1771978252226,-500.0,0.00042,120]
[406620307,1771978252235,-744.3517164,0.00042,3]
[406620308,1771978252249,-260.42,0.00042,120]
[406620309,1771978252259,-418.98,0.00042,120]
[406620310,1771978252269,-392.4799895,0.00042034,2]
[406620311,1771978252279,-4811.11,0.000421,2]
[406620312,1771978252290,-815.63,0.00042189,120]
[406620314,1771978252300,-281.0,0.00042407,120]
[406620315,1771978252310,-737.79,0.0004241,120]
[406620316,1771978252319,-188.95,0.0004241,120]
[406620317,1771978252328,-158.9,0.0004241,120]
[406620318,1771978252338,-155.91,0.0004241,120]
[406620319,1771978252348,-160.97,0.0004241,120]
[406620320,1771978252358,-272.3013763,0.00042424,120]
[406620321,1771978252368,-200.0,0.00042494,120]
[406620322,1771978252377,-200.0,0.00042629,59]
[406620323,1771978252387,-815.63,0.00042788,120]
[406620324,1771978252396,-385.28411,0.000429,120]
[406620325,1771978252406,-200.0,0.000429,120]
[406620326,1771978252417,-774.68,0.0004291,120]
[406620327,1771978252428,-166.84,0.0004291,120]
[406620328,1771978252438,-163.71,0.0004291,120]
[406620329,1771978252448,-169.02,0.0004291,120]
[406620330,1771978252458,-506.78,0.00043,120]
[406620331,1771978252467,-500.0,0.00043,120]
[406620332,1771978252476,-177.0,0.00043051,120]
[406620333,1771978252486,-873.75648759,0.00043191,7]
[406620334,1771978252495,-421.02905061,0.00043213,28]
[406620335,1771978252504,-160.0,0.00043233,120]
[406620336,1771978252514,-815.63,0.00043386,120]
[406620337,1771978252523,-200.0,0.00043393,62]
[406620338,1771978252532,-813.42,0.0004341,120]
[406620339,1771978252542,-175.18,0.0004341,120]
[406620340,1771978252551,-171.9,0.0004341,120]
[406620341,1771978252561,-177.48,0.0004341,120]
[406620342,1771978252570,-520.81019237,0.00043779,30]
[406620343,1771978252580,-500.0,0.00043791,30]
[406620344,1771978252592,-296.28067851,0.000438,30]
[406620345,1771978252602,-1000.0,0.00043836,120]
[406620346,1771978252611,-504.6,0.00043836,120]
[406620347,1771978252620,-854.09,0.0004391,120]
[406620348,1771978252629,-183.94,0.0004391,120]
[406620349,1771978252638,-180.49,0.0004391,120]
[406620350,1771978252648,-186.35,0.0004391,120]
[406620351,1771978252657,-179.76630381,0.00043911,30]
[406620352,1771978252667,-815.63,0.00043984,120]
[406620353,1771978252677,-500.0,0.00044,120]
[406620354,1771978252687,-200.0,0.00044,120]
[406620355,1771978252696,-172.0,0.00044,90]
[406620356,1771978252705,-744.3517164,0.00044,7]
[406620357,1771978252715,-4811.11,0.000441,2]
[406620358,1771978252725,-260.42,0.000441,120]
[406620359,1771978252734,-200.0,0.00044228,120]
[406620360,1771978252743,-200.0,0.00044248,66]
[406620361,1771978252753,-429.0,0.00044408,2]
[406620362,1771978252763,-896.79,0.0004441,120]
[406620363,1771978252772,-193.14,0.0004441,120]
[406620364,1771978252782,-189.52,0.0004441,120]
[406620365,1771978252792,-195.67,0.0004441,120]
[406620366,1771978252803,-815.63,0.00044583,120]
[406620367,1771978252812,-523.0,0.00044646,60]
[406620368,1771978252822,-451.91476233,0.00044694,120]
[406620369,1771978252832,-941.63,0.0004491,120]
[406620370,1771978252842,-202.8,0.0004491,120]
[406620371,1771978252852,-199.0,0.0004491,120]
[406620372,1771978252863,-205.45,0.0004491,120]
[406620373,1771978252872,-199.999999,0.00045,120]
[406620374,1771978252882,-1520.6,0.00045,30]
[406620375,1771978252892,-792.09454511,0.00045,30]
[406620376,1771978252901,-510.55114019,0.00045,120]
[406620377,1771978252911,-178.5363038,0.00045,120]
[406620378,1771978252920,-195.24201805,0.00045,30]
[406620379,1771978252930,-150.51893768,0.00045,120]
[406620380,1771978252939,-500.0,0.00045,120]
[406620381,1771978252948,-204.0,0.00045051,120]
[406620382,1771978252959,-815.63,0.00045181,120]
[406620383,1771978252968,-736.9007,0.000452,90]
[406620384,1771978252978,-200.0,0.00045202,70]
[406620385,1771978252989,-873.75648759,0.0004536,30]
[406620386,1771978252999,-414.04894363,0.000454,120]
[406620387,1771978253010,-988.72,0.0004541,120]
[406620388,1771978253020,-212.94,0.0004541,120]
[406620389,1771978253030,-208.95,0.0004541,120]
[406620390,1771978253041,-215.72,0.0004541,120]
[406620391,1771978253050,-481.25,0.000455,14]
[406620392,1771978253060,-236.0,0.00045562,30]
[406620393,1771978253070,-927.5,0.00045657,60]
[406620394,1771978253080,-282.0,0.00045657,60]
[406620395,1771978253090,-1000.0,0.0004575,120]
[406620396,1771978253100,-815.63,0.00045779,120]
[406620397,1771978253110,-500.0,0.00045889,60]
[406620398,1771978253120,-1038.15,0.0004591,120]
[406620399,1771978253129,-223.58,0.0004591,120]
[406620400,1771978253139,-219.39,0.0004591,120]
[406620401,1771978253151,-226.51,0.0004591,120]
[406620402,1771978253160,-6907.46908589,0.00046,2]
[406620403,1771978253170,-516.17,0.00046,30]
[406620404,1771978253180,-171.29096322,0.00046,120]
[406620405,1771978253190,-513.70458427,0.00046,30]
[406620406,1771978253200,-500.0,0.00046,120]
[406620407,1771978253210,-172.0,0.00046027,90]
[406620408,1771978253219,-527.0,0.00046037,2]
[406620409,1771978253229,-150.0,0.00046037,2]
[406620410,1771978253240,-150.0,0.00046037,2]
[406620411,1771978253250,-150.0,0.00046037,2]
[406620412,1771978253259,-254.0,0.00046037,2]
[406620413,1771978253269,-500.0,0.00046083,30]
[406620414,1771978253279,-4811.11,0.000461,2]
[406620415,1771978253419,-629.70129102,0.00046133,60]
[406620416,1771978253430,-500.0,0.00046209,60]
[406620417,1771978253440,-200.0,0.00046269,76]
[406620418,1771978253451,-815.63,0.00046377,120]
[406620419,1771978253461,-1090.06,0.0004641,120]
[406620420,1771978253471,-234.76,0.0004641,120]
[406620421,1771978253480,-230.36,0.0004641,120]
[406620422,1771978253491,-237.84,0.0004641,120]
[406620423,1771978253502,-879.94075267,0.00046428,60]
[406620424,1771978253512,-1000.0,0.00046575,120]
[406620425,1771978253522,-965.8,0.00046575,120]
[406620426,1771978253532,-511.35934463,0.00046575,10]
[406620427,1771978253542,-1144.56,0.0004691,120]
[406620428,1771978253552,-246.5,0.0004691,120]
[406620429,1771978253562,-241.88,0.0004691,120]
[406620430,1771978253571,-249.73,0.0004691,120]
[406620431,1771978253581,-815.63,0.00046976,120]
[406620432,1771978253590,-500.0,0.00047,120]
[406620433,1771978253599,-231.0,0.00047051,120]
[406620434,1771978253609,-873.75648759,0.00047198,30]
[406620435,1771978253619,-873.75648759,0.00047198,30]
[406620436,1771978253629,-307.56,0.00047397,30]
[406620437,1771978253639,-1201.79,0.0004741,120]
[406620438,1771978253649,-258.83,0.0004741,120]
[406620439,1771978253658,-253.98,0.0004741,120]
[406620440,1771978253667,-262.2,0.0004741,120]
[406620441,1771978253678,-200.0,0.00047461,83]
[406620442,1771978253688,-200.0,0.00047572,120]
[406620443,1771978253698,-815.63,0.00047574,120]
[406620444,1771978253709,-1261.88,0.0004791,120]
[406620445,1771978253720,-271.77,0.0004791,120]
[406620446,1771978253730,-266.68,0.0004791,120]
[406620447,1771978253740,-275.32,0.0004791,120]
[406620448,1771978253750,-1520.6,0.00048,30]
[406620449,1771978253760,-162.2867338,0.00048,120]
[406620450,1771978253770,-500.0,0.00048,120]
[406620451,1771978253779,-421.02905061,0.0004803,28]
[406620452,1771978253789,-307.56,0.00048082,34]
[406620453,1771978253799,-4811.11,0.000481,2]
[406620454,1771978253808,-815.63,0.00048172,120]
[406620455,1771978253817,-385.28411,0.000482,120]
[406620456,1771978253827,-200.0,0.000482,120]
[406620457,1771978253837,-160.0,0.00048253,3]
[406620458,1771978253847,-1324.98,0.0004841,120]
[406620459,1771978253856,-285.36,0.0004841,120]
[406620460,1771978253866,-280.01,0.0004841,120]
[406620461,1771978253875,-151.0,0.0004841,120]
[406620462,1771978253885,-500.0,0.00048508,30]
[406620463,1771978253894,-200.0,0.00048612,120]
[406620464,1771978253915,-307.56,0.00048767,38]
[406620465,1771978253925,-815.63,0.00048771,120]
[406620466,1771978253936,-200.0,0.00048793,92]
[406620467,1771978253946,-1049.14620206,0.000488,120]
[406620468,1771978253956,-1391.23,0.0004891,120]
[406620469,1771978253967,-299.63,0.0004891,120]
[406620470,1771978253976,-294.01,0.0004891,120]
[406620471,1771978253988,-588.36227025,0.00049,120]
[406620472,1771978254002,-500.0,0.00049,120]
[406620473,1771978254012,-500.0,0.00049,120]
[406620474,1771978254022,-258.0,0.00049051,120]
[406620475,1771978254032,-839.25,0.000492,14]
[406620476,1771978254042,-657.14,0.00049315,120]
[406620477,1771978254052,-460.8670376,0.00049315,120]
[406620478,1771978254063,-1000.0,0.00049315,120]
[406620479,1771978254075,-815.63,0.00049369,120]
[406620480,1771978254087,-21215.69604,0.000494,2]
[406620481,1771978254098,-1460.79,0.0004941,120]
[406620482,1771978254108,-314.61,0.0004941,120]
[406620483,1771978254118,-308.7,0.0004941,120]
[406620484,1771978254128,-307.56,0.00049452,42]
[406620485,1771978254138,-274.9608,0.000495,120]
[406620486,1771978254148,-200.0,0.00049822,120]
[406620487,1771978254158,-150.0,0.00049834,7]
[406620488,1771978254168,-150.0,0.00049834,7]
[406620489,1771978254179,-284.0,0.00049834,7]
[406620490,1771978254189,-1533.83,0.0004991,120]
[406620491,1771978254199,-330.34,0.0004991,120]
[406620492,1771978254209,-324.14,0.0004991,120]
[406620493,1771978254219,-815.63,0.00049967,120]
[406620494,1771978254228,-100635.20757678,0.0005,120]
[406620495,1771978254239,-152.0,0.0005,120]
[406620496,1771978254248,-392.4799895,0.0005,120]
[406620497,1771978254258,-167.5,0.0005,5]
[406620498,1771978254267,-227.08683427,0.0005,20]
[406620499,1771978254277,-996.69382025,0.0005,120]
[406620500,1771978254286,-251.58230031,0.0005,120]
[406620501,1771978254296,-679.4449247,0.0005,120]
[406620502,1771978254307,-165.68927889,0.0005,120]
[406620503,1771978254317,-177.7766341,0.0005,120]
[406620504,1771978254327,-500.0,0.0005,120]
[406620505,1771978254336,-307.56,0.00050136,46]
[406620506,1771978254347,-4811.11,0.000502,2]
[406620507,1771978254357,-176.8555,0.0005024,120]
[406620508,1771978254367,-200.0,0.00050282,104]
[406620509,1771978254376,-450.0,0.000503,60]
[406620510,1771978254387,-200.0,0.000503,60]
[406620511,1771978254398,-200.0,0.000503,60]
[406620512,1771978254412,-185.0,0.000503,60]
[406620513,1771978254422,-501.0,0.000503,60]
[406620514,1771978254433,-1077.6955875,0.00050318,30]
[406620515,1771978254444,-408.0,0.00050325,120]
[406620516,1771978254455,-200.0,0.00050359,120]
[406620517,1771978254465,-402.0,0.000504,31]
[406620518,1771978254475,-1610.52,0.0005041,120]
[406620519,1771978254485,-346.86,0.0005041,120]
[406620520,1771978254495,-340.35,0.0005041,120]
[406620521,1771978254506,-815.63,0.00050566,120]
[406620522,1771978254515,-500.0,0.000506,60]
[406620523,1771978254525,-300.0,0.000506,60]
[406620524,1771978254535,-516.17,0.000506,30]
[406620525,1771978254546,-300.0,0.000506,60]
[406620526,1771978254556,-1000.0,0.000506,60]
[406620527,1771978254566,-1000.0,0.000506,60]
[406620528,1771978254575,-401.0,0.0005062,31]
[406620529,1771978254585,-160.0,0.00050644,4]
[406620530,1771978254595,-162.0,0.0005072,31]
[406620531,1771978254605,-402.0,0.0005072,31]
[406620532,1771978254614,-402.0,0.0005072,31]
[406620533,1771978254624,-402.0,0.0005072,31]
[406620534,1771978254634,-152.0,0.000508,120]
[406620535,1771978254644,-307.56,0.00050821,50]
[406620536,1771978254654,-500.0,0.000509,60]
[406620537,1771978254663,-180.0,0.00050904,120]
[406620538,1771978254673,-173.15665091,0.00050904,120]
[406620539,1771978254683,-1691.04,0.0005091,120]
[406620540,1771978254694,-364.2,0.0005091,120]
[406620541,1771978254704,-357.37,0.0005091,120]
[406620542,1771978254713,-445.35,0.0005096,13]
[406620543,1771978254723,-481.25,0.00051,14]
[406620544,1771978254733,-1520.6,0.00051,30]
[406620545,1771978254743,-500.0,0.00051,120]
[406620546,1771978254753,-2328.343529,0.00051,85]
[406620547,1771978254763,-58528.45533037,0.00051,3]
[406620548,1771978254928,161.99461,0.00041944,120]
[406620549,1771978256816,-500.0,0.0004095,120]
[406620550,1771978256827,-500.0,0.0004095,120]
[406620551,1771978256837,-500.0,0.0004095,120]
[406620552,1771978256848,-418.98,0.000441,120]
[406620553,1771978256858,-260.42,0.00046305,120]
[406620554,1771978256868,-418.98,0.00046305,120]
[406620555,1771978256878,-13458.093534,0.00051,3]
[406620556,1771978257333,-9738.76531479,0.00051,3]
[406620557,1771978257439,-2038.80170561,0.00051,3]
[406620558,1771978388874,151.0,0.00041944,120]
[406620559,1771978389182,151.0,0.00041944,120]
[406620560,1771978389468,151.0,0.00041944,120]
[406620561,1771978390091,151.0,0.00041944,120]
[406620562,1771978390373,151.0,0.00041944,120]
[406620563,1771978390690,151.0,0.00041944,120]
[406620564,1771978390979,151.0,0.00041944,120]
[406620565,1771978391258,151.0,0.00041944,120]
[406620566,1771978391543,151.0,0.00041944,120]
[406620567,1771978392213,151.0,0.00041944,120]
[406620568,1771978392339,151.0,0.00041944,120]
[406620569,1771978392473,151.0,0.00041944,120]
[406620570,1771978392748,188.0,0.00041944,120]
[406620571,1771978580136,151.0,0.00041899,120]
[406620572,1771978580446,151.0,0.00041899,120]
[406620573,1771978580721,151.0,0.00041899,120]
[406620574,1771978581037,151.0,0.00041899,120]
[406620575,1771978581450,176.828251,0.00041899,120]
[406620585,1771978754980,2530.4,0.00041899,30]
[406620637,1771978947667,70469.268692,0.00041903,120]
[406620707,1771979353233,2902.26903572,0.00041899,30]
[406620729,1771979432190,-500.0,0.00013273,2]
[406620731,1771979432200,-399.85900595,0.00013821,2]
[406620733,1771979432209,-324.235,0.00016117,120]
[406620734,1771979432218,-1880.53694428,0.00017738,2]
[406620736,1771979432230,-624.60902044,0.00017738,2]
[406620738,1771979432241,-497.8558082,0.00017738,2]
[406620740,1771979432254,-562.28378186,0.00017738,2]
[406620742,1771979432265,-594.54488708,0.00017738,2]
[406620747,1771979432326,-3208.81236043,0.00017738,2]
[406620773,1771979438255,-1388.89778511,0.00017738,2]
[406620774,1771979438267,-330.88611306,0.00017999,2]
[406620775,1771979438277,-179.30767825,0.00017999,2]
[406620776,1771979438287,-500.0,0.00017999,2]
[406620777,1771979438298,-500.0,0.00017999,2]
[406620778,1771979438308,-500.0,0.00017999,2]
[406620779,1771979438317,-500.0,0.00017999,2]
[406620780,1771979438327,-500.0,0.00017999,2]
[406620781,1771979438337,-500.0,0.00017999,2]
[406620782,1771979438349,-500.0,0.00017999,2]
[406620783,1771979438359,-500.0,0.00017999,2]
[406620784,1771979438368,-216.75603869,0.00017999,2]
[406620785,1771979438378,-500.0,0.00017999,2]
[406620786,1771979438390,-500.0,0.00017999,2]
[406620787,1771979438400,-500.0,0.00017999,2]
[406620788,1771979438409,-500.0,0.00017999,2]
[406620789,1771979438418,-500.0,0.00017999,2]
[406620790,1771979438430,-500.0,0.00017999,2]
[406620791,1771979438439,-500.0,0.00017999,2]
[406620792,1771979438449,-500.0,0.00017999,2]
[406620793,1771979438458,-58458.46300272,0.00018,2]
[406620794,1771979438470,-2608.9590466,0.00018,2]
[406620795,1771979438481,-1476.03254611,0.00018,2]
[406620796,1771979438493,-27902.67150633,0.00018,2]
[406620797,1771979438503,-403.1218295,0.00019344,2]
[406620798,1771979438512,-459.76337508,0.00021492,2]
[406620799,1771979438522,-725.61929311,0.00022156,2]
[406620800,1771979438531,-8920.0,0.000247,2]
[406620801,1771979438541,-421.16919687,0.000249,2]
[406620802,1771979438551,-3705.0,0.00025,15]
[406620803,1771979438561,-2328.34352904,0.00026,30]
[406620804,1771979438572,-200.0,0.00027,120]
[406620805,1771979438582,-500.0,0.00027397,2]
[406620806,1771979438592,-500.0,0.00027397,2]
[406620807,1771979438601,-314.04187951,0.00027397,2]
[406620808,1771979438611,-104.26255167,0.00027397,2]
[406620809,1771979438622,-395.73744833,0.00027397,2]
[406620810,1771979438633,-500.0,0.00027397,2]
[406620811,1771979438642,-500.0,0.00027397,2]
[406620812,1771979438651,-322.14553766,0.00027397,2]
[406620890,1771979443740,-177.85446234,0.00027397,2]
[406620891,1771979443751,-274.9608,0.00029,120]
[406620892,1771979443760,-182.0,0.0003063,14]
[406620893,1771979443769,-194.541,0.000314,120]
[406620894,1771979443779,-200.0,0.000323,120]
[406620895,1771979443788,-429.0,0.00033058,2]
[406620896,1771979443804,-727.0,0.00033058,2]
[406620897,1771979443822,-271.14885743,0.000332,117]
[406620898,1771979443838,-271.14885739,0.000332,117]
[406620899,1771979443856,-194.002972,0.00033968,2]
[406620900,1771979443874,-534.73652747,0.0003399,10]
[406620901,1771979443895,-3267.21899118,0.0003399,10]
[406620902,1771979447070,-2526.43448135,0.0003399,10]
[406620903,1771979447083,-5273.66,0.0003399,10]
[406620904,1771979447096,-23659.16054411,0.00034,2]
[406620908,1771979539002,-619.8670338,0.00022796,2]
[406620922,1771979574825,-619.8670338,0.00026517,2]
[406620923,1771979581450,179.20060421,0.000275,2]
[406620924,1771979604089,-1060.53346339,0.000275,2]
[406620930,1771979713488,630.3739615,0.00041899,30]
[406620964,1771979988006,34373.75363906,0.00041899,60]
[406621013,1771980395125,-276.52534847,0.00017999,2]
[406621121,1771980587491,523.0,0.00041894,30]
[406621167,1771980632366,-891.0,0.00017465,2]
[406621177,1771980638518,-2217.79727743,0.00017465,2]
[406621178,1771980638528,-677.0,0.00017465,2]
[406621179,1771980638538,-556.0,0.0001764,2]
[406621180,1771980638547,-2457.68418455,0.00017641,2]
[406621181,1771980638557,-227.54667019,0.00017719,2]
[406621182,1771980638567,-3724.26604823,0.00017819,2]
[406621197,1771980643562,-1275.73395177,0.00017819,2]
[406621198,1771980643571,-897.3966073,0.00022889,2]
[406621199,1771980643580,-335.9919091,0.00022889,2]
[406621200,1771980643589,-309.9335169,0.00022896,2]
[406621201,1771980643598,-190.03,0.00024641,2]
[406621202,1771980643607,-150.0,0.00024658,2]
[406621203,1771980643616,-250.0,0.00025205,2]
[406621204,1771980643625,-457.55588156,0.00025753,2]
[406621205,1771980643634,-222.0,0.00025889,2]
[406621206,1771980643643,-897.3966073,0.00025889,2]
[406621207,1771980643653,-217.01475568,0.00026032,2]
[406621208,1771980643661,-309.9335169,0.00026622,2]
[406621209,1771980643670,-335.9919091,0.00026752,2]
[406621210,1771980643679,-222.0,0.00027499,2]
[406621211,1771980643690,-222.0,0.000275,2]
[406621212,1771980643699,-200.0,0.00027507,15]
[406621213,1771980643710,-255.0,0.00028748,2]
[406621214,1771980643720,-188.0,0.00028848,18]
[406621215,1771980643729,-288.0,0.00028889,2]
[406621216,1771980643744,-101.99543198,0.00028889,2]
[406621217,1771980644403,-795.40117532,0.00028889,2]
[406621218,1771980644411,-161.0,0.000289,2]
[406621219,1771980644420,-161.0,0.000289,4]
[406621220,1771980644429,-161.0,0.000289,6]
[406621221,1771980644438,-161.0,0.000289,7]
[406621222,1771980644447,-200.0,0.00029178,19]
[406621223,1771980644456,-151.0,0.00029443,2]
[406621224,1771980644465,-151.0,0.00029443,2]
[406621225,1771980644474,-151.0,0.00029443,2]
[406621226,1771980644483,-12.90980117,0.00029443,2]
[406621227,1771980644497,-138.09019883,0.00029443,2]
[406621228,1771980644506,-151.0,0.00029443,2]
[406621229,1771980644515,-151.0,0.00029443,2]
[406621230,1771980644525,-151.0,0.00029443,2]
[406621231,1771980644534,-111.68507005,0.00029443,2]
[406621232,1771980646406,-39.31492995,0.00029443,2]
[406621233,1771980646415,-151.0,0.00029443,2]
[406621234,1771980646425,-151.0,0.00029443,2]
[406621235,1771980646434,-500.0,0.0003,120]
[406621236,1771980646444,-300.0,0.00030076,2]
[406621237,1771980646453,-309.9335169,0.00030348,2]
[406621238,1771980646463,-335.9919091,0.00030616,2]
[406621239,1771980646472,-155.0,0.0003063,14]
[406621240,1771980646480,-200.0,0.00031046,26]
[406621241,1771980646490,-161.0,0.000311,26]
[406621242,1771980646499,-727.0,0.00031258,2]
[406621243,1771980646508,-368.2268755,0.00031888,2]
[406621244,1771980646518,-500.0,0.00031888,2]
[406621245,1771980646527,-412.97289319,0.00031888,2]
[406621246,1771980646536,-897.3966073,0.00031889,2]
[406621247,1771980646546,-500.0,0.00032,120]
[406621248,1771980646555,-868.0590227,0.00032143,2]
[406621249,1771980646565,-304.4073177,0.00032813,2]
[406621250,1771980646574,-200.0,0.00033133,35]
[406621251,1771980646585,-162.68931445,0.000332,117]
[406621252,1771980646594,-162.68931443,0.000332,117]
[406621253,1771980646603,-1587.3428296,0.00033974,2]
[406621254,1771980646612,-500.0,0.00033999,2]
[406621255,1771980646621,-20137.68372816,0.00034,2]
[406621256,1771980646631,-500.0,0.00034,120]
[406621257,1771980646642,-309.9335169,0.00034074,2]
[406621258,1771980646651,-223.697,0.00034353,38]
[406621259,1771980646660,-335.9919091,0.00034479,2]
[406621260,1771980646669,-1100.0,0.00035,30]
[406621261,1771980646679,-168.0,0.00035453,2]
[406621262,1771980646688,-200.0,0.00035466,39]
[406621263,1771980646697,-168.0,0.00035484,2]
[406621264,1771980646706,-564.27860997,0.00035718,2]
[406621265,1771980646715,-168.0,0.00035795,120]
[406621266,1771980646724,-500.0,0.00035818,2]
[406621267,1771980646734,-500.0,0.00035818,15]
[406621268,1771980646747,-231.62027914,0.00035818,15]
[406621269,1771980646756,-164.40469506,0.00035818,15]
[406621270,1771980646766,-6588.7217951,0.00035819,2]
[406621271,1771980646775,-168.0,0.0003587,7]
[406621272,1771980646785,-500.0,0.00036,120]